bitfinex/quotes_SOLUSD_20251106
["timestamp","ask_amount","ask_price","bid_price","bid_amount"]
[1762415439673,6.42333936,159.06,159.0,22.68248446]
[1762415440094,0.72,159.06,159.0,28.38582382]
[1762415442304,0.72,159.06,159.0,90.38582382]
[1762415442480,0.72,159.06,159.0,74.66255338]
[1762415442792,0.72,159.06,159.0,68.28921402]
[1762415442793,5.70333936,159.05,159.0,68.28921402]
[1762415442996,5.70333936,159.04,159.0,68.28921402]
[1762415443178,5.70333936,159.03,159.0,62.0]
[1762415443383,6.42333936,159.03,159.0,62.0]
[1762415443999,0.72,159.03,159.0,68.28923481]
[1762415445699,0.72,159.03,159.0,62.0]
[1762415447184,6.42333936,159.03,159.0,62.0]
[1762415447703,0.72,159.02,159.0,62.0]
[1762415447903,0.72,159.02,158.98,68.28997705]
[1762415448200,5.70333936,159.01,158.98,62.0]
[1762415448407,5.70333936,159.0,158.98,62.0]
[1762415448604,6.42333936,159.01,158.98,62.0]
[1762415449492,0.72,159.0,158.98,62.0]
[1762415449894,6.42333936,159.02,158.98,62.0]
[1762415450088,5.70333936,159.03,158.98,68.28992738]
[1762415450289,0.72,159.01,158.98,68.28992738]
[1762415454114,6.38333936,159.03,158.98,69.00992738]
[1762415454407,0.68,159.02,158.98,69.00992738]
[1762415455301,12.67118755,159.04,158.99,0.72]
[1762415455691,0.68,159.04,158.99,0.72]
[1762415456022,0.68,159.04,159.0,6.28930817]
[1762415456213,12.67060041,159.06,159.0,6.28930817]
[1762415456385,0.68,159.05,159.0,69.00930817]
[1762415456794,6.38333936,159.05,159.0,69.00930817]
[1762415457312,6.28726105,159.06,159.0,68.28930817]
[1762415457612,11.98999305,159.07,159.01,0.72]
[1762415457915,0.68,159.05,159.0,69.00930817]
[1762415458296,0.68,159.05,159.01,0.72]
[1762415460432,20.592,159.11,159.02,22.00981007]
[1762415460615,6.96465478,159.12,159.06,2.19024717]
[1762415460923,0.68,159.12,159.06,2.19024717]
[1762415461100,0.68,159.12,159.06,2.91024717]
[1762415461519,6.96463679,159.12,159.06,2.91024717]
[1762415461822,2.19024717,159.1,159.05,20.592]
[1762415462296,0.68,159.1,159.06,0.72]
[1762415462497,0.68,159.1,159.06,7.00685481]
[1762415463425,68.51752091,159.14,159.07,2.91024717]
[1762415463426,0.68,159.13,159.07,2.91024717]
[1762415463603,0.68,159.15,159.1,2.19024717]
[1762415463798,0.68,159.15,159.06,70.9001573]
[1762415463799,0.68,159.17,159.11,2.19024717]
[1762415464219,0.68,159.17,159.11,2.91024717]
[1762415464524,0.68,159.18,159.12,10.42181657]
[1762415464704,0.68,159.18,159.12,9.70181657]
[1762415464903,0.68,159.18,159.13,0.72]
[1762415465307,0.68,159.18,159.13,4.13725147]
[1762415465603,1e-08,159.19,159.17,24.00925147]
[1762415465815,1e-08,159.19,159.18,4.13725147]
[1762415466129,1e-08,159.19,159.17,0.72]
[1762415466429,1e-08,159.19,159.16,20.592]
[1762415466430,1e-08,159.19,159.18,0.72]
[1762415466930,1e-08,159.19,159.17,0.72]
[1762415467107,1e-08,159.19,159.16,42.92873397]
[1762415467294,1e-08,159.19,159.16,0.72]
[1762415467501,0.68000001,159.19,159.14,8.06]
[1762415467732,0.68000001,159.19,159.14,14.34364579]
[1762415468027,0.68000001,159.19,159.15,0.72]
[1762415468736,1e-08,159.19,159.15,7.00324956]
[1762415468906,1e-08,159.19,159.15,14.99728237]
[1762415469303,1e-08,159.19,159.18,7.99403281]
[1762415469801,1e-08,159.19,159.18,8.71403281]
[1762415470724,1e-08,159.19,159.18,14.99622906]
[1762415470925,1e-08,159.19,159.18,24.78505675]
[1762415472805,1e-08,159.19,159.18,14.99622906]
[1762415473007,1e-08,159.19,159.18,6.28219625]
[1762415473221,1e-08,159.19,159.18,62.0]
[1762415474624,1e-08,159.19,159.18,68.28219625]
[1762415475004,1e-08,159.19,159.18,62.0]
[1762415475326,1e-08,159.19,159.18,68.28219625]
[1762415475633,1e-08,159.19,159.18,62.0]
[1762415475811,8.67403282,159.19,159.15,62.0]
[1762415476202,8.67403282,159.19,159.11,77.33403281]
[1762415476203,7.99403281,159.17,159.11,77.33403281]
[1762415476423,7.99403281,159.17,159.11,98.64603281]
[1762415476608,7.99403281,159.17,159.12,6.28449399]
[1762415476808,8.67403281,159.16,159.11,69.34]
[1762415477325,0.68,159.16,159.11,69.34]
[1762415477521,0.68,159.16,159.12,0.72]
[1762415478116,0.68,159.16,159.13,6.28417017]
[1762415478816,0.68,159.18,159.13,6.28417017]
[1762415479023,0.68,159.17,159.13,6.28417017]
[1762415480235,0.68,159.18,159.15,6.28338045]
[1762415480732,0.68,159.18,159.14,69.99403281]
[1762415480733,0.68,159.18,159.14,62.0]
[1762415481228,0.68,159.18,159.14,68.28377192]
[1762415481535,8.67403281,159.18,159.14,68.28377192]
[1762415481725,8.67403281,159.18,159.14,62.0]
[1762415481925,8.67403281,159.17,159.14,62.0]
[1762415482108,0.68,159.17,159.14,62.0]
[1762415482309,0.72,159.16,159.14,62.0]
[1762415482851,1e-08,159.19,159.14,68.28369766]
[1762415483016,0.72,159.18,159.14,68.28369766]
[1762415483414,0.72,159.18,159.14,6.28369766]
[1762415484414,0.72,159.18,159.14,6.93369766]
[1762415485012,0.72,159.18,159.14,6.28369766]
[1762415485838,0.72,159.18,159.13,6.28414571]
[1762415485839,7.99403281,159.17,159.13,6.28414571]
[1762415486209,0.72,159.16,159.12,6.28446291]
[1762415487115,0.72,159.16,159.12,6.93446291]
[1762415487924,14.99703897,159.16,159.11,27.932]
[1762415488125,14.99703897,159.16,159.11,89.932]
[1762415488337,0.72,159.15,159.11,89.932]
[1762415489039,0.72,159.15,159.11,96.21687362]
[1762415489742,0.72,159.15,159.11,96.86687362]
[1762415490319,14.27627841,159.18,159.12,0.65]
[1762415490521,1e-08,159.19,159.17,7.99403281]
[1762415490725,1e-08,159.19,159.18,7.99403281]
[1762415491017,1e-08,159.19,159.18,8.64403281]
[1762415491236,1e-08,159.19,159.18,14.92622906]
[1762415492418,1e-08,159.19,159.17,69.99403281]
[1762415492613,1e-08,159.19,159.18,6.93219625]
[1762415492941,1e-08,159.19,159.18,14.92622906]
[1762415494336,1e-08,159.19,159.18,94.05505675]
[1762415497243,1e-08,159.19,159.18,76.27219625]
[1762415497448,1e-08,159.19,159.18,68.28219625]
[1762415498142,1e-08,159.19,159.18,6.28219625]
[1762415499542,0.69000001,159.19,159.18,62.0]
[1762415500538,1e-08,159.19,159.18,68.28219625]
[1762415500719,1e-08,159.19,159.18,62.0]
[1762415500924,0.69000001,159.19,159.18,62.0]
[1762415503960,0.69000001,159.19,159.15,69.99403281]
[1762415504361,0.69000001,159.19,159.16,6.28292802]
[1762415504955,1e-08,159.19,159.17,7.99403281]
[1762415505250,1e-08,159.19,159.16,14.95696083]
[1762415506160,1e-08,159.19,159.18,7.99403281]
[1762415506650,1e-08,159.19,159.18,8.67403281]
[1762415507158,1e-08,159.19,159.16,29.3303922]
[1762415507350,1e-08,159.19,159.16,14.30292802]
[1762415507944,1e-08,159.19,159.16,22.29696083]
[1762415508141,1e-08,159.19,159.16,21.61696083]
[1762415508443,1e-08,159.19,159.16,22.29696083]
[1762415508655,1e-08,159.19,159.16,21.61696083]
[1762415508865,1e-08,159.19,159.16,38.00442501]
[1762415509750,1e-08,159.19,159.16,100.00442501]
[1762415511468,1e-08,159.19,159.16,92.66442501]
[1762415512853,1e-08,159.19,159.18,38.3748605]
[1762415513240,1e-08,159.19,159.18,29.28603281]
[1762415513474,1e-08,159.19,159.18,21.292]
[1762415513676,1e-08,159.19,159.18,29.28603281]
[1762415514951,1e-08,159.19,159.18,35.56822906]
[1762415515950,1e-08,159.19,159.18,211.45705675]
[1762415516879,1e-08,159.19,159.18,218.79705675]
[1762415518842,1e-08,159.19,159.18,210.80302394]
[1762415519046,1e-08,159.19,159.18,218.79705675]
[1762415519248,1e-08,159.19,159.18,209.00822906]
[1762415519884,1e-08,159.19,159.18,218.79705675]
[1762415521273,0.2,159.21,159.2,9.78882769]
[1762415521455,0.2,159.23,159.22,61.6]
[1762415521657,0.2,159.23,159.22,69.59403281]
[1762415521852,0.88,159.23,159.22,61.6]
[1762415522281,0.2,159.23,159.22,61.6]
[1762415522586,0.88,159.23,159.22,61.6]
[1762415522884,0.88,159.23,159.18,67.88214056]
[1762415522885,15.15425638,159.23,159.18,67.88214056]
[1762415523175,8.67403281,159.22,159.18,67.88214056]
[1762415523373,0.68,159.22,159.18,67.88214056]
[1762415523563,8.67403281,159.21,159.18,61.6]
[1762415523975,8.67403281,159.2,159.18,61.6]
[1762415524162,0.68,159.2,159.18,61.6]
[1762415524366,0.68,159.19,159.18,61.6]
[1762415525185,0.2,159.23,159.18,75.87622906]
[1762415525358,0.88,159.23,159.19,7.99403281]
[1762415525760,0.68,159.22,159.19,7.99403281]
[1762415526289,0.68,159.22,159.2,7.99403281]
[1762415526470,0.68,159.22,159.2,67.28967349]
[1762415526781,0.68,159.22,159.2,61.6]
[1762415527355,12.65043598,159.22,159.2,61.6]
[1762415527562,5.68967349,159.21,159.2,61.6]
[1762415527865,6.36967349,159.21,159.2,61.6]
[1762415530182,0.68,159.21,159.17,26.87454447]
[1762415530386,0.68,159.2,159.17,26.87454447]
[1762415531107,0.68,159.2,159.17,20.592]
[1762415531386,0.68,159.2,159.16,68.92]
[1762415531584,0.68,159.2,159.16,75.20287064]
[1762415531765,0.68,159.2,159.16,68.92]
[1762415531967,0.68,159.2,159.16,75.20295059]
[1762415532897,6.96151597,159.2,159.16,61.6]
[1762415533191,6.96151597,159.2,159.08,50.31525604]
[1762415533192,50.0,159.14,159.07,0.7]
[1762415533389,5.68967349,159.13,159.07,11.97593261]
[1762415533608,56.27967349,159.18,159.08,0.7]
[1762415533891,0.59,159.18,159.13,5.68967349]
[1762415534061,0.59,159.18,159.13,6.38967349]
[1762415534265,77.46351597,159.2,159.15,5.68967349]
[1762415534465,6.27967349,159.19,159.14,0.7]
[1762415534691,12.56171489,159.19,159.14,6.98371473]
[1762415535305,0.59,159.18,159.14,6.98371473]
[1762415535500,6.27967349,159.18,159.12,0.7]
[1762415536010,0.59,159.18,159.12,0.7]
[1762415536407,0.59,159.18,159.12,6.9845651]
[1762415536604,6.27967349,159.18,159.12,6.9845651]
[1762415536799,12.56223392,159.18,159.12,6.9845651]
[1762415537204,12.56223392,159.18,159.12,6.2845651]
[1762415537518,6.27967349,159.18,159.13,0.7]
[1762415538633,0.59,159.18,159.13,0.7]
[1762415538825,0.59,159.18,159.14,6.28377529]
[1762415539011,6.87222917,159.18,159.14,68.28377529]
[1762415539623,0.59,159.18,159.14,68.98377529]
[1762415540233,6.87221193,159.18,159.14,62.7]
[1762415542041,6.87221193,159.18,159.14,68.98370332]
[1762415542209,6.28189894,159.19,159.15,0.66]
[1762415542405,58.46823513,159.2,159.15,0.66]
[1762415542620,8.46823513,159.2,159.15,0.66]
[1762415543010,9.05823513,159.2,159.15,0.66]
[1762415543527,9.05823513,159.2,159.15,6.94336188]
[1762415544934,9.05823513,159.2,159.15,68.94336188]
[1762415545234,9.05823513,159.2,159.16,0.66]
[1762415545235,6.2815016,159.2,159.16,0.66]
[1762415546043,0.59,159.21,159.16,0.66]
[1762415546340,6.87103329,159.21,159.16,0.66]
[1762415547519,9.05776682,159.21,159.16,0.66]
[1762415547919,9.05776682,159.21,159.16,6.94297826]
[1762415548328,0.59,159.2,159.15,62.0]
[1762415548641,2.18673353,159.18,159.15,62.0]
[1762415549847,8.46901887,159.18,159.15,62.0]
[1762415554940,8.46901887,159.18,159.15,62.66]
[1762415555340,2.18673353,159.18,159.15,62.66]
[1762415555767,9.05906459,159.18,159.15,62.0]
[1762415555970,8.46906459,159.18,159.15,62.66]
[1762415557588,9.05906459,159.18,159.15,62.0]
[1762415559857,8.46906459,159.18,159.15,62.69]
[1762415560067,2.18673353,159.18,159.15,62.69]
[1762415561684,9.05858424,159.19,159.15,62.69]
[1762415562204,2.18673353,159.18,159.15,62.69]
[1762415562971,8.46894764,159.18,159.15,62.69]
[1762415563171,6.28221411,159.18,159.15,62.69]
[1762415563493,8.46894764,159.18,159.15,62.69]
[1762415565001,2.18673353,159.2,159.16,0.69]
[1762415565200,6.28063663,159.22,159.16,2.87673353]
[1762415565385,6.28063663,159.22,159.17,2.18673353]
[1762415565589,6.28063663,159.22,159.17,2.87673353]
[1762415565784,6.28063663,159.22,159.18,0.69]
[1762415566477,8.46737016,159.22,159.18,0.69]
[1762415566983,2.18673353,159.21,159.18,0.69]
[1762415567177,8.46737016,159.22,159.18,0.69]
[1762415568184,2.18673353,159.19,159.18,62.0]
[1762415568806,2.18673353,159.19,159.16,0.69]
[1762415569581,8.46837929,159.2,159.16,0.69]
[1762415570105,9.05837929,159.2,159.16,0.69]
[1762415572200,2.18673353,159.18,159.15,62.0]
[1762415572408,2.18673353,159.18,159.14,0.66]
[1762415572409,2.18673353,159.18,159.14,62.66]
[1762415572904,2.18673353,159.18,159.15,0.66]
[1762415573793,8.4690984,159.18,159.15,0.66]
[1762415574806,6.28236487,159.18,159.15,0.66]
[1762415577307,6.28236487,159.18,159.15,62.66]
[1762415578419,6.28236487,159.18,159.16,0.66]
[1762415578985,50.2,159.23,159.16,0.66]
[1762415579221,6.48028675,159.23,159.16,62.66]
[1762415579520,0.2,159.23,159.18,2.18673353]
[1762415579882,0.2,159.23,159.19,0.66]
[1762415580288,6.4803088,159.23,159.19,0.66]
[1762415580526,0.2,159.23,159.19,0.66]
[1762415581099,0.2,159.23,159.19,2.84673353]
[1762415581297,0.2,159.23,159.2,2.18673353]
[1762415581515,0.2,159.23,159.2,0.66]
[1762415581716,0.2,159.23,159.21,0.66]
[1762415582226,6.48033561,159.23,159.21,0.66]
[1762415582426,50.0,159.21,159.16,0.66]
[1762415582590,2.18673353,159.2,159.17,0.66]
[1762415583294,8.46827096,159.2,159.17,0.66]
[1762415583624,8.46784156,159.21,159.17,0.66]
[1762415583829,9.05738209,159.22,159.17,6.94247653]
[1762415584191,9.05738209,159.22,159.18,0.66]
[1762415584413,6.28064856,159.22,159.18,0.66]
[1762415584722,0.2,159.23,159.19,2.18673353]
[1762415585214,0.2,159.23,159.2,0.66]
[1762415585402,0.2,159.23,159.2,68.94132397]
[1762415585605,0.2,159.23,159.2,62.66]
[1762415585801,0.2,159.23,159.21,2.84673353]
[1762415586205,0.2,159.23,159.22,0.66]
[1762415587532,0.2,159.23,159.22,6.94061801]
[1762415587712,0.2,159.23,159.22,9.12735154]
[1762415588321,0.2,159.23,159.22,10.35344778]
[1762415588615,0.2,159.23,159.22,0.66]
[1762415588806,0.2,159.23,159.22,6.94061801]
[1762415589008,0.2,159.23,159.22,0.66]
[1762415590610,0.2,159.23,159.22,10.35344778]
[1762415592934,0.2,159.23,159.22,4.07282977]
[1762415593137,0.2,159.23,159.22,62.66]
[1762415593334,0.2,159.23,159.22,68.94061801]
[1762415593704,0.2,159.23,159.22,62.0]
[1762415593924,0.2,159.23,159.21,20.592]
[1762415594308,0.2,159.23,159.21,21.252]
[1762415594508,0.2,159.23,159.21,0.66]
[1762415596027,0.2,159.23,159.21,6.94097057]
[1762415596233,0.2,159.23,159.21,10.35380034]
[1762415596433,0.2,159.23,159.22,0.66]
[1762415597021,0.2,159.23,159.22,66.07282977]
[1762415597918,0.2,159.23,159.22,78.7294457]
[1762415598237,0.2,159.23,159.22,82.14227547]
[1762415599039,0.2,159.23,159.22,89.46227547]
[1762415599449,0.1,159.24,159.22,89.46227547]
[1762415599628,0.2,159.29,159.24,30.38082769]
[1762415599819,0.1,159.3,159.29,16.06668568]
[1762415600014,0.1,159.3,159.29,9.69068776]
[1762415600225,0.1,159.3,159.29,10.35068776]
[1762415600643,0.1,159.3,159.29,0.66]
[1762415601240,0.1,159.3,159.29,4.07282977]
[1762415602450,0.1,159.3,159.29,10.35068776]
[1762415604247,0.1,159.3,159.27,4.07282977]
[1762415604454,0.1,159.3,159.27,10.351171]
[1762415604637,0.1,159.3,159.28,0.66]
[1762415604837,0.1,159.3,159.28,62.66]
[1762415605146,0.1,159.3,159.28,62.0]
[1762415605354,0.1,159.3,159.26,21.252]
[1762415605355,7.04756267,159.3,159.26,21.252]
[1762415605652,0.1,159.3,159.27,4.07282977]
[1762415605952,6.37760905,159.3,159.27,0.66]
[1762415606164,6.37760905,159.3,159.26,3.41282977]
[1762415606331,7.04760905,159.3,159.25,3.41282977]
[1762415606650,7.04760905,159.3,159.26,0.66]
[1762415606855,0.1,159.3,159.26,4.07282977]
[1762415607353,0.1,159.3,159.27,4.07282977]
[1762415607645,0.1,159.3,159.27,0.66]
[1762415609653,0.1,159.3,159.27,10.35138813]
[1762415610264,0.1,159.3,159.27,6.93855836]
[1762415610468,3.41282977,159.28,159.22,68.28028527]
[1762415610643,10.46037477,159.3,159.25,0.66]
[1762415611550,0.67,159.29,159.25,0.66]
[1762415611759,4.08282977,159.29,159.25,0.66]
[1762415612146,0.67,159.28,159.23,4.07282977]
[1762415612348,3.41282977,159.29,159.24,0.66]
[1762415612557,4.08282977,159.29,159.24,0.66]
[1762415612764,6.377545,159.3,159.24,0.66]
[1762415612765,4.08282977,159.28,159.24,0.66]
[1762415613353,10.36129855,159.28,159.24,0.66]
[1762415613867,0.67,159.28,159.24,6.9397202]
[1762415614042,0.67,159.28,159.23,62.66]
[1762415614250,3.41282977,159.27,159.23,62.66]
[1762415614455,4.08282977,159.28,159.24,0.66]
[1762415615158,0.67,159.27,159.23,62.0]
[1762415615360,4.08282977,159.28,159.24,62.66]
[1762415615544,4.08282977,159.28,159.24,68.93982731]
[1762415615746,10.36111408,159.28,159.24,68.93982731]
[1762415616258,10.36111408,159.28,159.24,62.66]
[1762415616461,0.67,159.27,159.24,62.0]
[1762415616965,10.36111408,159.28,159.24,62.0]
[1762415617173,4.08282977,159.27,159.22,6.28049951]
[1762415617377,0.67,159.26,159.22,6.98049951]
[1762415617684,6.94906267,159.26,159.22,0.7]
[1762415617862,6.94906267,159.26,159.21,62.0]
[1762415617863,3.41282977,159.25,159.21,62.0]
[1762415618174,4.08282977,159.25,159.21,62.0]
[1762415618775,4.08282977,159.25,159.21,62.7]
[1762415618979,0.67,159.24,159.19,10.39462803]
[1762415619163,4.08282977,159.24,159.19,6.98179826]
[1762415619471,10.36296755,159.24,159.2,0.7]
[1762415619664,6.95013778,159.24,159.18,34.19398195]
[1762415619871,10.36296755,159.24,159.19,0.7]
[1762415620355,0.67,159.23,159.19,0.7]
[1762415620554,10.36296755,159.24,159.19,0.7]
[1762415620971,10.36296755,159.24,159.19,6.98172056]
[1762415621578,0.67,159.23,159.19,0.7]
[1762415621769,4.08282977,159.23,159.17,3.41282977]
[1762415621965,4.08282977,159.23,159.17,4.11282977]
[1762415622973,4.08282977,159.23,159.18,0.7]
[1762415623356,0.67,159.22,159.17,6.28247951]
[1762415623555,0.67,159.22,159.17,6.98247951]
[1762415623556,3.41282977,159.21,159.17,6.98247951]
[1762415623780,3.41282977,159.21,159.17,0.7]
[1762415623978,4.08282977,159.21,159.17,0.7]
[1762415624761,4.08282977,159.2,159.14,73.43282977]
[1762415624986,3.41282977,159.18,159.14,0.7]
[1762415625481,4.08282977,159.18,159.14,0.7]
[1762415626063,4.08282977,159.17,159.13,62.0]
[1762415626570,4.08282977,159.16,159.11,0.7]
[1762415626769,6.28310268,159.16,159.11,10.39773003]
[1762415627155,10.36593245,159.16,159.11,0.7]
[1762415627388,0.67,159.16,159.1,3.41282977]
[1762415627565,0.67,159.21,159.15,3.41282977]
[1762415627762,0.67,159.21,159.16,4.11282977]
[1762415627962,50.67,159.21,159.16,4.11282977]
[1762415628279,0.67,159.21,159.17,0.7]
[1762415628482,6.95121429,159.21,159.17,0.7]
[1762415628804,6.95121429,159.21,159.15,10.3959071]
[1762415629360,6.95121429,159.21,159.16,0.7]
[1762415629982,6.28068557,159.22,159.18,3.41282977]
[1762415630180,6.28068557,159.22,159.19,0.7]
[1762415631875,6.95032318,159.23,159.19,4.11282977]
[1762415632070,4.07282977,159.27,159.21,3.41282977]
[1762415632271,4.07282977,159.27,159.19,68.98175634]
[1762415632272,0.66,159.27,159.22,4.08282977]
[1762415633092,6.27914386,159.26,159.22,4.08282977]
[1762415633777,6.27914386,159.26,159.22,0.67]
[1762415633979,10.35156728,159.27,159.22,6.95057982]
[1762415634290,6.93873751,159.27,159.22,6.95057982]
[1762415634882,6.27873751,159.27,159.23,0.67]
[1762415635086,6.27837048,159.28,159.23,4.08282977]
[1762415635490,0.66,159.27,159.23,0.67]
[1762415637182,6.93883888,159.27,159.23,0.67]
[1762415637599,10.35166865,159.27,159.23,0.67]
[1762415639271,4.07282977,159.26,159.21,6.95092954]
[1762415639674,0.66,159.25,159.21,6.95092954]
[1762415639978,0.66,159.25,159.2,3.41282977]
[1762415640192,0.66,159.25,159.21,0.67]
[1762415643582,6.9396213,159.25,159.21,62.67]
[1762415644498,10.35245107,159.25,159.21,62.67]
[1762415644710,54.07282977,159.24,159.18,86.67482977]
[1762415645007,3.41282977,159.23,159.19,0.67]
[1762415645192,54.07282977,159.24,159.19,0.67]
[1762415645684,0.66,159.24,159.19,4.08282977]
[1762415646200,4.07282977,159.24,159.2,0.67]
[1762415646582,6.28022357,159.23,159.2,0.67]
[1762415647404,6.2798822,159.24,159.2,0.67]
[1762415648406,6.2798822,159.24,159.2,6.95140212]
[1762415648578,6.27954324,159.25,159.21,0.67]
[1762415648784,1.99999999,159.32,159.23,3.41282977]
[1762415648785,20.592,159.29,159.23,3.41282977]
[1762415648991,27.52987728,159.29,159.23,62.0]
[1762415649209,3.41282977,159.28,159.23,62.67]
[1762415649389,30.94270705,159.29,159.23,62.67]
[1762415649704,3.41282977,159.28,159.23,62.67]
[1762415650091,6.27864632,159.27,159.24,0.67]
[1762415650494,9.12285205,159.27,159.23,62.0]
[1762415650689,9.12285205,159.27,159.23,62.67]
[1762415650892,2.18420573,159.25,159.23,62.0]
[1762415651114,2.18420573,159.25,159.21,0.67]
[1762415651115,2.18420573,159.25,159.21,62.0]
[1762415651348,2.84420573,159.24,159.21,62.0]
[1762415653819,2.18420573,159.25,159.21,62.67]
[1762415654015,21.97397228,159.28,159.24,0.67]
[1762415654318,6.27834195,159.28,159.24,0.67]
[1762415654806,2.84420573,159.27,159.21,62.0]
[1762415654991,2.18420573,159.26,159.22,0.67]
[1762415655536,2.84420573,159.26,159.22,0.67]
[1762415656240,59.12364058,159.25,159.21,62.0]
[1762415656618,59.12364058,159.25,159.21,62.67]
[1762415656820,58.46364058,159.25,159.21,62.67]
[1762415658245,58.46364058,159.25,159.22,0.67]
[1762415658542,58.46364058,159.25,159.21,62.0]
[1762415658743,58.46364058,159.25,159.21,62.67]
[1762415659043,56.27943485,159.25,159.22,0.67]
[1762415659240,58.46364058,159.25,159.22,0.67]
[1762415659929,6.27943485,159.25,159.22,0.67]
[1762415661027,59.12364058,159.25,159.2,62.67]
[1762415661225,59.12364058,159.25,159.2,62.0]
[1762415661428,8.46364058,159.25,159.21,0.67]
[1762415662816,2.88420573,159.24,159.2,62.7]
[1762415663041,9.16434032,159.24,159.2,62.7]
[1762415663233,8.46434032,159.24,159.2,62.0]
[1762415663443,6.27949688,159.25,159.21,0.7]
[1762415663831,8.46370261,159.25,159.21,0.7]
[1762415664133,9.16370261,159.25,159.21,0.7]
[1762415664432,59.16370261,159.25,159.21,0.7]
[1762415665241,59.16370261,159.25,159.21,62.7]
[1762415672650,58.46370261,159.25,159.21,62.7]
[1762415672951,59.16370261,159.25,159.21,62.7]
[1762415673356,2.18420573,159.24,159.21,62.7]
[1762415673962,6.28021833,159.24,159.21,62.7]
[1762415676737,6.28021833,159.24,159.21,0.7]
[1762415677838,6.27957637,159.25,159.21,0.7]
[1762415679361,6.27785799,159.29,159.23,2.18420573]
[1762415679580,2.18420573,159.26,159.21,62.7]
[1762415679887,2.18420573,159.25,159.21,62.7]
[1762415680168,2.18420573,159.25,159.19,68.28152143]
[1762415680370,2.18420573,159.24,159.2,0.7]
[1762415681080,2.84420573,159.24,159.2,0.7]
[1762415681441,6.28022357,159.23,159.2,0.7]
[1762415682367,9.12412018,159.24,159.2,0.7]
[1762415682965,2.18420573,159.23,159.2,0.7]
[1762415683542,6.28061801,159.22,159.2,0.7]
[1762415683867,8.46453282,159.23,159.2,0.7]
[1762415686995,6.28032709,159.23,159.2,0.7]
[1762415688296,6.94032709,159.23,159.2,0.7]
[1762415688473,6.28032709,159.23,159.2,62.7]
[1762415688671,6.28032709,159.23,159.21,0.7]
[1762415688872,6.28032709,159.23,159.2,62.7]
[1762415689588,6.2799299,159.24,159.21,0.7]
[1762415689790,58.46413563,159.24,159.21,0.7]
[1762415689996,50.66,159.23,159.2,62.0]
[1762415690181,52.18420573,159.22,159.2,62.0]
[1762415690387,52.84420573,159.22,159.2,62.0]
[1762415691096,52.84420573,159.22,159.18,0.7]
[1762415692874,6.28101249,159.21,159.18,0.7]
[1762415693395,50.0,159.2,159.17,0.72]
[1762415693581,2.18420573,159.2,159.17,0.72]
[1762415693889,52.18420573,159.2,159.17,0.72]
[1762415694388,2.18420573,159.2,159.17,0.72]
[1762415694578,8.46600735,159.19,159.17,0.72]
[1762415694980,2.18420573,159.18,159.17,0.72]
[1762415695881,8.46600735,159.19,159.17,0.72]
[1762415696284,8.46600735,159.19,159.13,2.18420573]
[1762415696486,8.46600735,159.19,159.17,0.72]
[1762415696683,8.46600735,159.19,159.13,68.28390931]
[1762415696884,8.46600735,159.19,159.17,0.72]
[1762415697192,2.18420573,159.2,159.17,0.72]
[1762415698102,58.46564752,159.2,159.17,0.72]
[1762415699198,8.46564752,159.2,159.17,0.72]
[1762415700198,2.18420573,159.19,159.17,0.72]
[1762415700996,8.46624805,159.19,159.17,0.72]
[1762415701598,6.28204232,159.19,159.17,0.72]
[1762415702184,8.46624805,159.19,159.15,62.0]
[1762415702382,8.46624805,159.19,159.16,0.72]
[1762415703382,6.28204232,159.19,159.16,0.72]